[Event "*** Titled Tuesday Blitz"]
[Site "Chess.com"]
[Date "2020.04.07"]
[Round "1"]
[White "djogrodek1"]
[Black "MikeSailer"]
[Result "1-0"]
[WhiteElo "2521"]
[BlackElo "2045"]
[TimeControl "180+1"]
[EndTime "13:04:41 PDT"]
[Termination "djogrodek1 won by resignation"]

1. Nf3 {[%clk 0:03:00.6]} 1... d5 {[%clk 0:03:00.1]} 2. e3 {[%clk 0:03:00.3]}
2... Nf6 {[%clk 0:03:00.5]} 3. c4 {[%clk 0:02:59.1]} 3... c6 {[%clk 0:02:59.8]}
4. Nc3 {[%clk 0:02:54.7]} 4... Bf5 {[%clk 0:02:59.5]} 5. Qb3 {[%clk 0:02:54]}
5... Qb6 {[%clk 0:02:58.8]} 6. cxd5 {[%clk 0:02:54.5]} 6... Qxb3 {[%clk
0:02:58.6]} 7. axb3 {[%clk 0:02:55.4]} 7... cxd5 {[%clk 0:02:57.5]} 8. Nb5
{[%clk 0:02:54.7]} 8... Kd8 {[%clk 0:02:38.1]} 9. Ne5 {[%clk 0:02:26.1]} 9...
Bg6 {[%clk 0:02:28.5]} 10. Nxa7 {[%clk 0:02:25.9]} 10... Na6 {[%clk 0:02:21]}
11. Nb5 {[%clk 0:02:05.4]} 11... e6 {[%clk 0:02:21.1]} 12. Be2 {[%clk
0:01:58.5]} 12... Nd7 {[%clk 0:02:12]} 13. Nxg6 {[%clk 0:01:53.2]} 13... hxg6
{[%clk 0:02:11.5]} 14. O-O {[%clk 0:01:53.4]} 14... Bb4 {[%clk 0:02:05.4]} 15.
d4 {[%clk 0:01:47]} 15... Ke7 {[%clk 0:02:04.6]} 16. Nc3 {[%clk 0:01:44.1]}
16... Rac8 {[%clk 0:01:49]} 17. Bd2 {[%clk 0:01:42.9]} 17... Nf6 {[%clk
0:01:36.2]} 18. Bxa6 {[%clk 0:01:37.9]} 18... bxa6 {[%clk 0:01:34]} 19. Rxa6
{[%clk 0:01:38.8]} 19... Bxc3 {[%clk 0:01:28.5]} 20. Bxc3 {[%clk 0:01:37.2]}
20... Ne4 {[%clk 0:01:28.7]} 21. Bb4+ {[%clk 0:01:34.2]} 21... Kf6 {[%clk
0:01:28.9]} 22. f3 {[%clk 0:01:30.2]} 22... Rb8 {[%clk 0:01:08.9]} 23. fxe4+
{[%clk 0:01:26.7]} 1-0

[Event "*** Titled Tuesday Blitz"]
[Site "Chess.com"]
[Date "2020.04.07"]
[Round "1"]
[White "vlad_Sid"]
[Black "AyMitecK"]
[Result "1-0"]
[WhiteElo "2623"]
[BlackElo "2287"]
[TimeControl "180+1"]
[EndTime "13:04:42 PDT"]
[Termination "vlad_Sid won by resignation"]

1. c4 {[%clk 0:03:00.9]} 1... Nf6 {[%clk 0:02:59.8]} 2. g3 {[%clk 0:03:00.8]}
2... c5 {[%clk 0:02:58.4]} 3. Bg2 {[%clk 0:03:00.9]} 3... d5 {[%clk 0:02:59.1]}
4. cxd5 {[%clk 0:03:00.7]} 4... Nxd5 {[%clk 0:03:00]} 5. Nc3 {[%clk 0:03:01.3]}
5... Nc7 {[%clk 0:03:00.1]} 6. Qa4+ {[%clk 0:02:56.2]} 6... Bd7 {[%clk
0:02:56.3]} 7. Qb3 {[%clk 0:02:54.1]} 7... Bc6 {[%clk 0:02:51.2]} 8. Bxc6+
{[%clk 0:02:52.5]} 8... Nxc6 {[%clk 0:02:42.8]} 9. Qxb7 {[%clk 0:02:51.3]} 9...
Qd7 {[%clk 0:02:43]} 10. Nb5 {[%clk 0:02:22.3]} 10... Rc8 {[%clk 0:02:24.7]} 11.
Nf3 {[%clk 0:02:18.1]} 11... e5 {[%clk 0:01:52.4]} 12. Nxa7 {[%clk 0:02:11.3]}
12... Nxa7 {[%clk 0:01:39.9]} 13. Qxa7 {[%clk 0:02:05.1]} 13... e4 {[%clk
0:01:38.6]} 14. Ne5 {[%clk 0:02:02.4]} 14... Qd5 {[%clk 0:01:33.4]} 15. Qa4+
{[%clk 0:02:00.9]} 15... Ke7 {[%clk 0:01:28.2]} 16. Nc6+ {[%clk 0:01:58.1]}
16... Kf6 {[%clk 0:01:27.6]} 17. Na5 {[%clk 0:01:54.7]} 17... Bd6 {[%clk
0:01:20.7]} 18. b3 {[%clk 0:01:50.9]} 18... Be5 {[%clk 0:01:18.4]} 19. Rb1
{[%clk 0:01:49.1]} 19... Rhd8 {[%clk 0:01:16]} 20. Nc4 {[%clk 0:01:39.4]} 20...
Bd4 {[%clk 0:01:08.9]} 21. Nb6 {[%clk 0:01:36.4]} 21... Bxf2+ {[%clk 0:01:01.5]}
22. Kxf2 {[%clk 0:01:34.2]} 22... e3+ {[%clk 0:01:01.9]} 23. dxe3 {[%clk
0:01:32.5]} 23... Qxh1 {[%clk 0:00:59.9]} 24. Bb2+ {[%clk 0:01:32]} 1-0

[Event "*** Titled Tuesday Blitz"]
[Site "Chess.com"]
[Date "2020.04.07"]
[Round "1"]
[White "wnstop"]
[Black "Playgood28"]
[Result "1-0"]
[WhiteElo "2593"]
[BlackElo "2249"]
[TimeControl "180+1"]
[EndTime "13:04:43 PDT"]
[Termination "wnstop won by resignation"]

1. e4 {[%clk 0:03:00.5]} 1... e5 {[%clk 0:02:57.7]} 2. Nf3 {[%clk 0:02:59.2]}
2... d6 {[%clk 0:02:57.8]} 3. d4 {[%clk 0:02:59.1]} 3... exd4 {[%clk 0:02:55]}
4. Nxd4 {[%clk 0:03:00]} 4... Nf6 {[%clk 0:02:53.7]} 5. Nc3 {[%clk 0:03:00.2]}
5... Be7 {[%clk 0:02:53.9]} 6. g3 {[%clk 0:03:00.1]} 6... d5 {[%clk 0:02:53.1]}
7. e5 {[%clk 0:02:53.4]} 7... Ng4 {[%clk 0:02:52.6]} 8. Bg2 {[%clk 0:02:40.3]}
8... Nxe5 {[%clk 0:02:49.8]} 9. Qe2 {[%clk 0:02:39.5]} 9... Ng6 {[%clk
0:02:36.1]} 10. Nxd5 {[%clk 0:02:38.5]} 10... O-O {[%clk 0:02:35.4]} 11. O-O
{[%clk 0:02:27.5]} 11... Bd6 {[%clk 0:02:30.7]} 12. Nb5 {[%clk 0:02:23.7]} 12...
a6 {[%clk 0:02:25.5]} 13. Nxd6 {[%clk 0:02:23.4]} 13... Qxd6 {[%clk 0:02:22]}
14. Rd1 {[%clk 0:02:22.1]} 14... Bd7 {[%clk 0:01:24.8]} 15. h4 {[%clk 0:02:16]}
15... Kh8 {[%clk 0:01:20]} 16. h5 {[%clk 0:02:14.7]} 16... Ne5 {[%clk 0:01:19]}
17. h6 {[%clk 0:02:11.5]} 17... Bg4 {[%clk 0:01:06.1]} 18. f3 {[%clk 0:02:10.9]}
18... c6 {[%clk 0:01:05.5]} 19. hxg7+ {[%clk 0:02:09.4]} 19... Kxg7 {[%clk
0:01:04.2]} 20. fxg4 {[%clk 0:02:08.8]} 20... cxd5 {[%clk 0:01:03.2]} 21. Rxd5
{[%clk 0:02:08.6]} 21... Qb6+ {[%clk 0:00:56.5]} 22. Be3 {[%clk 0:02:08.1]}
22... Qe6 {[%clk 0:00:29.5]} 23. Rxe5 {[%clk 0:02:08]} 1-0

[Event "*** Titled Tuesday Blitz"]
[Site "Chess.com"]
[Date "2020.04.07"]
[Round "1"]
[White "Ceejay271"]
[Black "GMMelik"]
[Result "0-1"]
[WhiteElo "2255"]
[BlackElo "2601"]
[TimeControl "180+1"]
[EndTime "13:04:45 PDT"]
[Termination "GMMelik won by resignation"]

1. d4 {[%clk 0:03:00.2]} 1... d5 {[%clk 0:02:59.5]} 2. c4 {[%clk 0:02:59.8]}
2... c6 {[%clk 0:02:57.5]} 3. cxd5 {[%clk 0:02:59.4]} 3... cxd5 {[%clk 0:02:57]}
4. Nc3 {[%clk 0:03:00.1]} 4... Nf6 {[%clk 0:02:57]} 5. Bf4 {[%clk 0:03:00.4]}
5... Nc6 {[%clk 0:02:54.6]} 6. e3 {[%clk 0:03:00.4]} 6... a6 {[%clk 0:02:53.7]}
7. Bd3 {[%clk 0:02:59.4]} 7... g6 {[%clk 0:02:36.6]} 8. h3 {[%clk 0:02:56.2]}
8... Bf5 {[%clk 0:02:35.8]} 9. Bxf5 {[%clk 0:02:52.6]} 9... gxf5 {[%clk
0:02:36.7]} 10. Nf3 {[%clk 0:02:52.7]} 10... e6 {[%clk 0:02:35.9]} 11. O-O
{[%clk 0:02:51.6]} 11... Bd6 {[%clk 0:02:29]} 12. Bxd6 {[%clk 0:02:40.3]} 12...
Qxd6 {[%clk 0:02:27.5]} 13. Rc1 {[%clk 0:02:40.9]} 13... Rg8 {[%clk 0:02:22]}
14. Qa4 {[%clk 0:02:29.7]} 14... Ke7 {[%clk 0:02:19.4]} 15. Nb1 {[%clk
0:01:43.1]} 15... Ne4 {[%clk 0:02:13.8]} 16. Qa3 {[%clk 0:01:40.3]} 16... Qxa3
{[%clk 0:02:02]} 17. Nxa3 {[%clk 0:01:40]} 17... Rac8 {[%clk 0:02:02.9]} 18. Nb1
{[%clk 0:01:34.2]} 18... Nb4 {[%clk 0:01:58]} 19. a3 {[%clk 0:01:04.5]} 19...
Nd3 {[%clk 0:01:54.2]} 20. Rxc8 {[%clk 0:01:03.4]} 20... Rxc8 {[%clk 0:01:55.1]}
21. b4 {[%clk 0:00:55.7]} 21... Rc2 {[%clk 0:01:43.8]} 0-1

[Event "*** Titled Tuesday Blitz"]
[Site "Chess.com"]
[Date "2020.04.07"]
[Round "1"]
[White "x-3738459472"]
[Black "letantha"]
[Result "1-0"]
[WhiteElo "2532"]
[BlackElo "2130"]
[TimeControl "180+1"]
[EndTime "13:04:47 PDT"]
[Termination "x-3738459472 won by resignation"]

1. e4 {[%clk 0:03:00.9]} 1... c5 {[%clk 0:02:58.6]} 2. Nc3 {[%clk 0:02:54.2]}
2... g6 {[%clk 0:02:58.4]} 3. Nf3 {[%clk 0:02:53.7]} 3... Bg7 {[%clk 0:02:58.2]}
4. Bc4 {[%clk 0:02:54]} 4... Nc6 {[%clk 0:02:55.7]} 5. O-O {[%clk 0:02:53.9]}
5... d6 {[%clk 0:02:52.6]} 6. d3 {[%clk 0:02:53.5]} 6... Nf6 {[%clk 0:02:50.7]}
7. h3 {[%clk 0:02:53.7]} 7... O-O {[%clk 0:02:49.7]} 8. Bf4 {[%clk 0:02:54.3]}
8... e5 {[%clk 0:02:46.1]} 9. Bg5 {[%clk 0:02:52]} 9... h6 {[%clk 0:02:43.4]}
10. Bxf6 {[%clk 0:02:50]} 10... Bxf6 {[%clk 0:02:39.9]} 11. Nd5 {[%clk
0:02:50.1]} 11... Bg7 {[%clk 0:02:39.5]} 12. c3 {[%clk 0:02:50.7]} 12... Ne7
{[%clk 0:02:36.6]} 13. d4 {[%clk 0:02:47.6]} 13... cxd4 {[%clk 0:02:35.7]} 14.
cxd4 {[%clk 0:02:46.7]} 14... Nxd5 {[%clk 0:02:36.3]} 15. Bxd5 {[%clk
0:02:45.8]} 15... exd4 {[%clk 0:02:36.6]} 16. Nxd4 {[%clk 0:02:39.4]} 16... Qb6
{[%clk 0:02:35.5]} 17. Nb3 {[%clk 0:02:30.2]} 17... Bxb2 {[%clk 0:02:07.6]} 18.
Rb1 {[%clk 0:02:29.2]} 18... Bg7 {[%clk 0:02:06.5]} 19. Nd2 {[%clk 0:02:28.9]}
19... Qa5 {[%clk 0:01:51.1]} 20. Nc4 {[%clk 0:02:27.2]} 20... Qd8 {[%clk
0:01:49.8]} 21. Nxd6 {[%clk 0:02:26.5]} 21... Be6 {[%clk 0:01:37.6]} 22. Bxe6
{[%clk 0:02:17]} 22... fxe6 {[%clk 0:01:37.2]} 23. Rxb7 {[%clk 0:02:17.4]} 23...
Rb8 {[%clk 0:01:03.5]} 24. Rxa7 {[%clk 0:02:14.8]} 24... Rb2 {[%clk 0:01:03.7]}
25. e5 {[%clk 0:02:11.5]} 25... Bxe5 {[%clk 0:00:51.1]} 26. Qg4 {[%clk
0:02:09.5]} 26... Qg5 {[%clk 0:00:26.1]} 27. Qxe6+ {[%clk 0:02:05.9]} 27... Kh8
{[%clk 0:00:26.5]} 28. Nf7+ {[%clk 0:02:05.1]} 28... Rxf7 {[%clk 0:00:26.6]} 29.
Qxf7 {[%clk 0:02:05.7]} 1-0

[Event "*** Titled Tuesday Blitz"]
[Site "Chess.com"]
[Date "2020.04.07"]
[Round "1"]
[White "Everyfishknows"]
[Black "VeraLevel"]
[Result "0-1"]
[WhiteElo "2351"]
[BlackElo "2691"]
[TimeControl "180+1"]
[EndTime "13:04:52 PDT"]
[Termination "VeraLevel won by resignation"]

1. Nf3 {[%clk 0:03:00.9]} 1... g6 {[%clk 0:03:00.3]} 2. e4 {[%clk 0:02:59.3]}
2... Bg7 {[%clk 0:03:01.2]} 3. d4 {[%clk 0:02:59.3]} 3... c6 {[%clk 0:03:01.6]}
4. Bd3 {[%clk 0:02:57.8]} 4... d6 {[%clk 0:03:01.4]} 5. c3 {[%clk 0:02:57.6]}
5... e5 {[%clk 0:03:00.1]} 6. O-O {[%clk 0:02:57]} 6... Nd7 {[%clk 0:02:59.2]}
7. Nbd2 {[%clk 0:02:54]} 7... Ngf6 {[%clk 0:02:58.8]} 8. Re1 {[%clk 0:02:49.7]}
8... O-O {[%clk 0:02:58.6]} 9. Nf1 {[%clk 0:02:48.9]} 9... a5 {[%clk 0:02:58.4]}
10. a4 {[%clk 0:02:46.2]} 10... Re8 {[%clk 0:02:58.3]} 11. Ng3 {[%clk
0:02:44.6]} 11... Qe7 {[%clk 0:02:58.2]} 12. b3 {[%clk 0:02:31.3]} 12... b6
{[%clk 0:02:54.9]} 13. Ba3 {[%clk 0:02:30.4]} 13... Bf8 {[%clk 0:02:52.3]} 14.
Rc1 {[%clk 0:02:14.8]} 14... Bb7 {[%clk 0:02:50.3]} 15. Qd2 {[%clk 0:02:04.5]}
15... Rad8 {[%clk 0:02:48.5]} 16. c4 {[%clk 0:01:59.1]} 16... exd4 {[%clk
0:02:48]} 17. Nxd4 {[%clk 0:01:58.9]} 17... Nc5 {[%clk 0:02:48.3]} 18. Bb1
{[%clk 0:01:56]} 18... h5 {[%clk 0:02:48.8]} 19. Qg5 {[%clk 0:01:31]} 19... Qe5
{[%clk 0:02:38]} 20. Qd2 {[%clk 0:01:23.7]} 20... h4 {[%clk 0:02:36.4]} 21. Nf1
{[%clk 0:01:13.4]} 21... Nfxe4 {[%clk 0:02:35.8]} 22. Qc2 {[%clk 0:01:06]} 22...
Qxd4 {[%clk 0:02:35.4]} 23. Bb2 {[%clk 0:01:04.8]} 23... Qxf2+ {[%clk
0:02:34.2]} 24. Qxf2 {[%clk 0:01:02.3]} 24... Nxf2 {[%clk 0:02:35.1]} 25. Kxf2
{[%clk 0:00:53.6]} 25... Nxb3 {[%clk 0:02:35.2]} 26. Rcd1 {[%clk 0:00:52.5]}
26... Rxe1 {[%clk 0:02:31.7]} 27. Rxe1 {[%clk 0:00:53.4]} 27... d5 {[%clk
0:02:32]} 28. c5 {[%clk 0:00:49.7]} 28... Bxc5+ {[%clk 0:02:31.1]} 29. Kf3
{[%clk 0:00:47.8]} 29... Nd4+ {[%clk 0:02:27.1]} 30. Kg4 {[%clk 0:00:45.4]}
30... Bc8+ {[%clk 0:02:17.8]} 31. Kxh4 {[%clk 0:00:45.2]} 31... Nf3+ {[%clk
0:02:18.4]} 32. gxf3 {[%clk 0:00:45.3]} 32... Bf2+ {[%clk 0:02:19]} 33. Ng3
{[%clk 0:00:44.4]} 33... Bxe1 {[%clk 0:02:19.5]} 34. Bd3 {[%clk 0:00:44.4]}
34... Re8 {[%clk 0:02:15.2]} 35. Kg5 {[%clk 0:00:36.1]} 35... Re3 {[%clk
0:02:14.5]} 36. Bc2 {[%clk 0:00:36.3]} 36... Bxg3 {[%clk 0:02:14]} 37. hxg3
{[%clk 0:00:36.6]} 37... Re2 {[%clk 0:02:14.6]} 38. Bxg6 {[%clk 0:00:37]} 0-1

[Event "*** Titled Tuesday Blitz"]
[Site "Chess.com"]
[Date "2020.04.07"]
[Round "1"]
[White "1g41-0"]
[Black "Parhamov"]
[Result "0-1"]
[WhiteElo "2497"]
[BlackElo "3100"]
[TimeControl "180+1"]
[EndTime "13:04:57 PDT"]
[Termination "Parhamov won by resignation"]

1. d4 {[%clk 0:03:00.9]} 1... Nf6 {[%clk 0:02:59.4]} 2. c4 {[%clk 0:03:01.3]}
2... e6 {[%clk 0:02:59.3]} 3. Nc3 {[%clk 0:03:01.8]} 3... Bb4 {[%clk 0:02:59.1]}
4. f3 {[%clk 0:03:02.4]} 4... d5 {[%clk 0:02:58.8]} 5. a3 {[%clk 0:03:02.8]}
5... Be7 {[%clk 0:02:58.7]} 6. cxd5 {[%clk 0:03:03.1]} 6... exd5 {[%clk
0:02:58.9]} 7. e4 {[%clk 0:03:02.8]} 7... O-O {[%clk 0:02:55.3]} 8. e5 {[%clk
0:03:03]} 8... Ne8 {[%clk 0:02:55.1]} 9. f4 {[%clk 0:03:03.3]} 9... c5 {[%clk
0:02:55]} 10. Nf3 {[%clk 0:03:03.8]} 10... Nc6 {[%clk 0:02:53.9]} 11. Be2 {[%clk
0:03:01.6]} 11... Bg4 {[%clk 0:02:53.2]} 12. dxc5 {[%clk 0:03:00.5]} 12... Nc7
{[%clk 0:02:53.2]} 13. O-O {[%clk 0:02:56.7]} 13... Bxc5+ {[%clk 0:02:52.7]} 14.
Kh1 {[%clk 0:02:56.9]} 14... a6 {[%clk 0:02:52.1]} 15. b4 {[%clk 0:02:55.3]}
15... Ba7 {[%clk 0:02:51.7]} 16. Bb2 {[%clk 0:02:53]} 16... d4 {[%clk 0:02:52]}
17. Ne4 {[%clk 0:02:51.9]} 17... Nd5 {[%clk 0:02:52.6]} 18. Qd3 {[%clk
0:02:49.6]} 18... Nxf4 {[%clk 0:02:52.1]} 19. Qd2 {[%clk 0:02:43.7]} 19... Nxe2
{[%clk 0:02:52.3]} 20. Qxe2 {[%clk 0:02:44.6]} 20... Nxe5 {[%clk 0:02:52.6]} 21.
h3 {[%clk 0:02:37.6]} 21... Bxf3 {[%clk 0:02:47.8]} 22. gxf3 {[%clk 0:02:38.5]}
22... Rc8 {[%clk 0:02:46.2]} 23. f4 {[%clk 0:02:35]} 23... Nc4 {[%clk
0:02:45.4]} 24. Rg1 {[%clk 0:02:30.9]} 24... Re8 {[%clk 0:02:44.6]} 25. Qg2
{[%clk 0:02:25.8]} 25... g6 {[%clk 0:02:44.2]} 26. Raf1 {[%clk 0:02:21.5]} 26...
Nxb2 {[%clk 0:02:42.3]} 27. f5 {[%clk 0:02:20]} 27... Rc6 {[%clk 0:02:32.7]} 28.
Qf3 {[%clk 0:01:55.8]} 28... Nc4 {[%clk 0:02:12.3]} 29. fxg6 {[%clk 0:01:40.3]}
29... fxg6 {[%clk 0:02:12.2]} 30. Qf7+ {[%clk 0:01:39.8]} 30... Kh8 {[%clk
0:02:12.3]} 31. Ng5 {[%clk 0:01:35.3]} 31... Re7 {[%clk 0:02:08.6]} 32. Re1
{[%clk 0:01:34]} 32... Ne3 {[%clk 0:02:06.3]} 33. Rg4 {[%clk 0:01:09.3]} 33...
Qe8 {[%clk 0:01:54.6]} 34. Qf4 {[%clk 0:00:56.4]} 34... Nxg4 {[%clk 0:01:45.8]}
0-1

[Event "*** Titled Tuesday Blitz"]
[Site "Chess.com"]
[Date "2020.04.07"]
[Round "1"]
[White "pooh2012"]
[Black "Zaven_ChessMood"]
[Result "0-1"]
[WhiteElo "2457"]
[BlackElo "2871"]
[TimeControl "180+1"]
[EndTime "13:04:58 PDT"]
[Termination "Zaven_ChessMood won by resignation"]

1. Nf3 {[%clk 0:03:00.9]} 1... d5 {[%clk 0:02:59.7]} 2. g3 {[%clk 0:03:00.6]}
2... Nc6 {[%clk 0:02:58.8]} 3. c4 {[%clk 0:02:48.7]} 3... d4 {[%clk 0:02:58.4]}
4. Bg2 {[%clk 0:02:47.4]} 4... e5 {[%clk 0:02:58.2]} 5. d3 {[%clk 0:02:47.5]}
5... Bb4+ {[%clk 0:02:54.6]} 6. Nbd2 {[%clk 0:02:42.7]} 6... a5 {[%clk
0:02:54.5]} 7. a3 {[%clk 0:02:42.1]} 7... Be7 {[%clk 0:02:53]} 8. b3 {[%clk
0:02:39.6]} 8... Nf6 {[%clk 0:02:53]} 9. Bb2 {[%clk 0:02:37.3]} 9... O-O {[%clk
0:02:53.6]} 10. O-O {[%clk 0:02:35.8]} 10... Bf5 {[%clk 0:02:53.4]} 11. Ng5
{[%clk 0:02:29.1]} 11... Qd7 {[%clk 0:02:52.6]} 12. Nge4 {[%clk 0:02:25.3]}
12... Nxe4 {[%clk 0:02:49.7]} 13. Nxe4 {[%clk 0:02:21.9]} 13... Bh3 {[%clk
0:02:49.9]} 14. f4 {[%clk 0:01:53.8]} 14... Bxg2 {[%clk 0:02:46.4]} 15. Kxg2
{[%clk 0:01:54.7]} 15... f5 {[%clk 0:02:43.5]} 16. Nd2 {[%clk 0:01:52.8]} 16...
exf4 {[%clk 0:02:40.7]} 17. gxf4 {[%clk 0:01:53.7]} 17... Bf6 {[%clk 0:02:36.7]}
18. Rf3 {[%clk 0:01:47]} 18... Rae8 {[%clk 0:02:36.5]} 19. Rb1 {[%clk
0:01:25.7]} 19... Re6 {[%clk 0:02:36.5]} 20. b4 {[%clk 0:01:25.2]} 20... axb4
{[%clk 0:02:33.7]} 21. axb4 {[%clk 0:01:26.1]} 21... Rfe8 {[%clk 0:02:34.2]} 22.
Kf1 {[%clk 0:01:17.5]} 22... Nxb4 {[%clk 0:02:30.9]} 23. Ba3 {[%clk 0:01:12.7]}
23... Na2 {[%clk 0:02:27.8]} 24. Qb3 {[%clk 0:00:25.3]} 24... Nc3 {[%clk
0:02:27.6]} 25. Re1 {[%clk 0:00:24.3]} 25... Bh4 {[%clk 0:02:25.1]} 26. Rg3
{[%clk 0:00:18.2]} 26... Bxg3 {[%clk 0:02:24.2]} 27. hxg3 {[%clk 0:00:19.1]}
27... Qc6 {[%clk 0:02:24.2]} 28. Nf3 {[%clk 0:00:16.2]} 28... Rxe2 {[%clk
0:02:22.9]} 29. c5+ {[%clk 0:00:16.4]} 29... Kh8 {[%clk 0:02:19.3]} 30. Rxe2
{[%clk 0:00:12.7]} 30... Qxf3+ {[%clk 0:02:18.9]} 0-1

[Event "*** Titled Tuesday Blitz"]
[Site "Chess.com"]
[Date "2020.04.07"]
[Round "1"]
[White "biostatistician"]
[Black "warmoatmeal"]
[Result "1-0"]
[WhiteElo "2506"]
[BlackElo "1886"]
[TimeControl "180+1"]
[EndTime "13:05:10 PDT"]
[Termination "biostatistician won by resignation"]

1. d4 {[%clk 0:03:00.8]} 1... Nf6 {[%clk 0:02:59]} 2. Nf3 {[%clk 0:03:01.7]}
2... e6 {[%clk 0:02:58]} 3. c4 {[%clk 0:03:02]} 3... d5 {[%clk 0:02:56]} 4. Bg5
{[%clk 0:03:01.9]} 4... Be7 {[%clk 0:02:54.1]} 5. Nc3 {[%clk 0:03:02.1]} 5...
O-O {[%clk 0:02:52.7]} 6. e3 {[%clk 0:03:02.5]} 6... h6 {[%clk 0:02:50]} 7. Bh4
{[%clk 0:03:02.7]} 7... c6 {[%clk 0:02:47.3]} 8. Bd3 {[%clk 0:03:02.5]} 8...
Nbd7 {[%clk 0:02:45.7]} 9. O-O {[%clk 0:03:03.3]} 9... b6 {[%clk 0:02:45.4]} 10.
Qe2 {[%clk 0:03:03.5]} 10... Bb7 {[%clk 0:02:44.5]} 11. Rac1 {[%clk 0:03:03.3]}
11... c5 {[%clk 0:02:42.2]} 12. Rfd1 {[%clk 0:03:03.5]} 12... cxd4 {[%clk
0:02:40.8]} 13. exd4 {[%clk 0:03:03.5]} 13... Rc8 {[%clk 0:02:35.7]} 14. Bg3
{[%clk 0:02:51.7]} 14... a6 {[%clk 0:02:22.6]} 15. cxd5 {[%clk 0:02:48.9]} 15...
Nxd5 {[%clk 0:02:16.1]} 16. Bxa6 {[%clk 0:02:49.1]} 16... Bxa6 {[%clk
0:02:14.3]} 17. Qxa6 {[%clk 0:02:50]} 17... Ra8 {[%clk 0:02:13.9]} 18. Qe2
{[%clk 0:02:42.7]} 18... N7f6 {[%clk 0:02:10]} 19. Nxd5 {[%clk 0:02:39.3]} 19...
Nxd5 {[%clk 0:02:10.9]} 20. a3 {[%clk 0:02:39.6]} 20... Bd6 {[%clk 0:02:04.8]}
21. Be5 {[%clk 0:02:31.4]} 21... Bxe5 {[%clk 0:01:53.2]} 22. dxe5 {[%clk
0:02:26.3]} 22... Qe7 {[%clk 0:01:53.3]} 23. Rc4 {[%clk 0:02:22.8]} 23... Rfd8
{[%clk 0:01:52.3]} 24. Rdc1 {[%clk 0:02:21.2]} 24... b5 {[%clk 0:01:44.5]} 25.
Rg4 {[%clk 0:02:11.9]} 25... b4 {[%clk 0:01:41.2]} 26. axb4 {[%clk 0:02:04.6]}
26... Nxb4 {[%clk 0:01:42.1]} 27. h3 {[%clk 0:02:00.6]} 27... Kh8 {[%clk
0:01:40.1]} 28. Kh2 {[%clk 0:01:45.8]} 28... Ra2 {[%clk 0:01:35.8]} 29. Rh4
{[%clk 0:01:31]} 29... Nd3 {[%clk 0:01:25.5]} 30. Rc2 {[%clk 0:01:26.1]} 30...
Rb8 {[%clk 0:01:11.1]} 31. Qxd3 {[%clk 0:01:20.7]} 31... Raxb2 {[%clk
0:01:08.6]} 32. Rxb2 {[%clk 0:01:21.6]} 32... Rxb2 {[%clk 0:01:08.5]} 33. Rd4
{[%clk 0:01:21.5]} 33... Rxf2 {[%clk 0:01:07.8]} 34. Rd8+ {[%clk 0:01:21.2]} 1-0

[Event "*** Titled Tuesday Blitz"]
[Site "Chess.com"]
[Date "2020.04.07"]
[Round "1"]
[White "Jadeit90"]
[Black "Rud_Makarian"]
[Result "0-1"]
[WhiteElo "2237"]
[BlackElo "2584"]
[TimeControl "180+1"]
[EndTime "13:05:12 PDT"]
[Termination "Rud_Makarian won by resignation"]

1. g3 {[%clk 0:03:00.9]} 1... Nf6 {[%clk 0:02:46.4]} 2. Bg2 {[%clk 0:03:01.8]}
2... g6 {[%clk 0:02:46]} 3. e4 {[%clk 0:03:01.3]} 3... d6 {[%clk 0:02:44.7]} 4.
Nc3 {[%clk 0:03:01.5]} 4... Bg7 {[%clk 0:02:45.1]} 5. d4 {[%clk 0:03:01.5]} 5...
O-O {[%clk 0:02:44.3]} 6. Nge2 {[%clk 0:03:01.8]} 6... a6 {[%clk 0:02:44.5]} 7.
O-O {[%clk 0:03:02]} 7... Nc6 {[%clk 0:02:44.7]} 8. a4 {[%clk 0:03:01.6]} 8...
e5 {[%clk 0:02:44.2]} 9. d5 {[%clk 0:03:01.5]} 9... Ne7 {[%clk 0:02:43]} 10. b4
{[%clk 0:02:59.7]} 10... a5 {[%clk 0:02:40.4]} 11. bxa5 {[%clk 0:02:56.4]} 11...
Nd7 {[%clk 0:02:39]} 12. Bd2 {[%clk 0:02:53.8]} 12... Nc5 {[%clk 0:02:28]} 13.
Nb5 {[%clk 0:02:51.8]} 13... f5 {[%clk 0:02:24.3]} 14. exf5 {[%clk 0:02:44.5]}
14... Bxf5 {[%clk 0:02:24.3]} 15. Bb4 {[%clk 0:02:41.1]} 15... Na6 {[%clk
0:02:22]} 16. Ba3 {[%clk 0:02:36.5]} 16... Qd7 {[%clk 0:02:22.2]} 17. c4 {[%clk
0:02:35.3]} 17... Bh3 {[%clk 0:02:20.1]} 18. Rc1 {[%clk 0:02:30.9]} 18... Bxg2
{[%clk 0:02:17.1]} 19. Kxg2 {[%clk 0:02:31.8]} 19... Qg4 {[%clk 0:02:10.5]} 20.
Qc2 {[%clk 0:02:19]} 20... Nf5 {[%clk 0:02:03.9]} 21. h3 {[%clk 0:01:56.6]}
21... Nh4+ {[%clk 0:02:02]} 22. Kh2 {[%clk 0:01:56.6]} 22... Nf3+ {[%clk
0:02:01.7]} 23. Kg2 {[%clk 0:01:56.8]} 23... Qh5 {[%clk 0:01:54.6]} 24. c5
{[%clk 0:01:51.6]} 24... Ng5 {[%clk 0:01:52.3]} 25. Ng1 {[%clk 0:01:47.5]} 25...
c6 {[%clk 0:01:20.5]} 26. dxc6 {[%clk 0:01:38.5]} 26... bxc6 {[%clk 0:01:21.4]}
27. Nxd6 {[%clk 0:01:38.2]} 27... Kh8 {[%clk 0:01:10.7]} 28. Ne4 {[%clk
0:01:24]} 28... Nf3 {[%clk 0:01:00.9]} 29. Nxf3 {[%clk 0:01:21.4]} 29... Qxf3+
{[%clk 0:01:00.5]} 30. Kg1 {[%clk 0:01:16.8]} 30... Qxa3 {[%clk 0:01:01.4]} 0-1

[Event "*** Titled Tuesday Blitz"]
[Site "Chess.com"]
[Date "2020.04.07"]
[Round "1"]
[White "fmshawnrl123"]
[Black "Pudor"]
[Result "1-0"]
[WhiteElo "2721"]
[BlackElo "2371"]
[TimeControl "180+1"]
[EndTime "13:05:14 PDT"]
[Termination "fmshawnrl123 won by checkmate"]

1. c4 {[%clk 0:03:00.9]} 1... e6 {[%clk 0:02:59.6]} 2. g3 {[%clk 0:03:00.7]}
2... d5 {[%clk 0:02:58.4]} 3. Bg2 {[%clk 0:03:01.6]} 3... c5 {[%clk 0:02:56.7]}
4. cxd5 {[%clk 0:03:00]} 4... exd5 {[%clk 0:02:56.4]} 5. Nf3 {[%clk 0:03:00.9]}
5... Nc6 {[%clk 0:02:34.1]} 6. O-O {[%clk 0:02:57.8]} 6... Nf6 {[%clk
0:02:31.8]} 7. d4 {[%clk 0:02:56.5]} 7... c4 {[%clk 0:02:22.4]} 8. Nc3 {[%clk
0:02:45.4]} 8... Bb4 {[%clk 0:02:18.8]} 9. Bg5 {[%clk 0:02:39.2]} 9... Bxc3
{[%clk 0:02:13.5]} 10. bxc3 {[%clk 0:02:40.1]} 10... h6 {[%clk 0:02:13]} 11.
Bxf6 {[%clk 0:02:39.3]} 11... Qxf6 {[%clk 0:02:13.9]} 12. Nd2 {[%clk 0:02:39.8]}
12... O-O {[%clk 0:01:55.9]} 13. e4 {[%clk 0:02:37.4]} 13... dxe4 {[%clk
0:01:53.3]} 14. Nxe4 {[%clk 0:02:34.1]} 14... Qe7 {[%clk 0:01:45.5]} 15. Re1
{[%clk 0:02:28.2]} 15... Qa3 {[%clk 0:01:44.6]} 16. Qc2 {[%clk 0:02:22.4]} 16...
Bg4 {[%clk 0:01:16.4]} 17. Rab1 {[%clk 0:02:17.2]} 17... Na5 {[%clk 0:01:11.4]}
18. Rb5 {[%clk 0:02:11.4]} 18... b6 {[%clk 0:01:07.7]} 19. h3 {[%clk 0:01:58.1]}
19... Bd7 {[%clk 0:01:03.5]} 20. Rh5 {[%clk 0:01:55.3]} 20... Rfe8 {[%clk
0:00:56.1]} 21. Rxh6 {[%clk 0:01:17.3]} 21... gxh6 {[%clk 0:00:49.3]} 22. Nf6+
{[%clk 0:01:17.1]} 22... Kg7 {[%clk 0:00:48.7]} 23. Qh7+ {[%clk 0:01:16.4]}
23... Kxf6 {[%clk 0:00:43.1]} 24. Qxh6+ {[%clk 0:01:16.1]} 24... Kf5 {[%clk
0:00:42.9]} 25. g4# {[%clk 0:01:15.5]} 1-0